bitfinex-derivatives/quotes_SOLF0:USTF0_20251115
["timestamp","ask_amount","ask_price","bid_price","bid_amount"]
[1763222120389,1.78971563,142.0,141.96,3.38173947]
[1763222120587,3.89971563,142.0,141.96,3.38173947]
[1763222120980,2.11,141.99,141.96,3.38173947]
[1763222140102,1.78971563,142.0,141.96,3.38173947]
[1763222140506,3.91971563,142.0,141.96,3.38173947]
[1763222140703,2.13,141.99,141.96,3.38173947]
[1763222141000,1.78971563,142.0,141.96,3.38173947]
[1763222141209,1.78971563,142.02,141.96,3.38173947]
[1763222144209,8.37240438,142.02,141.96,3.38173947]
[1763222144707,1.78971563,142.02,141.96,3.38173947]
[1763222145009,11.50512459,142.03,141.96,3.38173947]
[1763222145210,2.13,142.02,141.96,3.38173947]
[1763222147308,8.71268875,142.02,141.96,3.38173947]
[1763222150311,8.71268875,142.01,141.96,3.38173947]
[1763222151210,2.13,142.01,141.96,3.38173947]
[1763222151511,8.71268875,142.01,141.96,3.38173947]
[1763222152012,2.13,142.01,141.96,3.38173947]
[1763222152407,8.71268875,142.01,141.96,3.38173947]
[1763222153609,6.58268875,142.01,141.96,3.38173947]
[1763222153813,2.13,142.07,142.0,3.18]
[1763222154005,2.13,142.07,142.03,3.18]
[1763222154404,2.13,142.05,141.98,3.18]
[1763222154607,2.13,142.05,141.97,2.79243584]
[1763222154807,2.13,142.05,141.97,5.97243584]
[1763222155105,2.79243584,142.05,141.98,8.80869382]
[1763222155306,2.79243584,142.05,141.99,8.80869382]
[1763222155505,0.05246338,142.03,142.01,0.05145823]
[1763222155704,0.05246338,142.03,142.02,8.80869382]
[1763222156715,0.05246338,142.03,141.97,3.18]
[1763222157612,0.05246338,142.03,141.99,0.04873228]
[1763222157919,0.05246338,142.03,142.0,3.18]
[1763222164612,73.58,142.06,142.01,3.31]
[1763222165218,68.2954469,142.06,142.01,3.31]
[1763222165618,0.04468183,142.05,142.03,3.31]
[1763222182827,0.04468183,142.05,142.02,3.19474637]
[1763222183533,0.04468183,142.05,142.02,0.04474637]
[1763222186436,0.04468183,142.05,142.02,3.19474637]
[1763222187531,2.79243584,142.04,142.02,0.04474637]
[1763222204443,0.04468183,142.05,142.02,0.04474637]
[1763222204844,1.78661158,142.04,142.02,0.04474637]
[1763222213747,8.37172278,142.04,142.02,0.04474637]
[1763222215948,1.78661158,142.04,142.02,0.04474637]
[1763222216248,8.37172278,142.04,142.02,0.04474637]
[1763222221753,8.7592212,142.03,142.02,0.04474637]
[1763222222154,10.54583278,142.04,142.02,0.04474637]
[1763222222350,8.7592212,142.03,142.02,0.04474637]
[1763222224653,8.7592212,142.03,141.96,1.78661158]
[1763222224854,8.7592212,142.03,141.95,3.34]
[1763222224855,1.78661158,142.0,141.95,3.34]
[1763222225359,8.37937193,142.0,141.95,3.34]
[1763222225554,1.78661158,141.98,141.95,3.34]
[1763222225760,73.56,141.97,141.95,0.04760121]
[1763222226056,1.78661158,141.96,141.91,3.34]
[1763222226359,1.78661158,141.94,141.89,3.34]
[1763222226565,73.56,141.93,141.89,3.34]
[1763222226859,1.78661158,141.92,141.87,3.34]
[1763222227058,0.04891813,141.91,141.88,3.38603435]
[1763222228153,0.04891813,141.91,141.89,3.34]
[1763222246074,0.04891813,141.91,141.9,4.87661158]
[1763222246674,1.78661158,141.97,141.91,3.09]
[1763222247275,0.05,141.96,141.91,3.09]
[1763222247777,0.044429,141.95,141.93,3.09]
[1763222248375,0.094429,141.95,141.93,3.09]
[1763222255480,0.044429,141.95,141.93,3.09]
[1763222257483,0.05,141.94,141.92,3.265927]
[1763222260781,0.05,141.94,141.92,0.045927]
[1763222261186,0.05,141.92,141.88,3.22]
[1763222262389,0.05022398,141.91,141.9,3.22]
[1763222266191,1.83661158,141.93,141.9,3.22]
[1763222266892,0.05,141.93,141.9,3.22]
[1763222267087,0.10148814,141.93,141.9,3.22]
[1763222268293,0.05,141.92,141.9,3.22]
[1763222270690,0.10148814,141.93,141.9,3.22]
[1763222271904,0.05,141.92,141.9,3.22]
[1763222272400,0.10148814,141.93,141.9,3.22]
[1763222273008,0.05,141.92,141.9,3.22]
[1763222273603,0.10148814,141.93,141.9,3.22]
[1763222287115,0.06,141.92,141.9,3.22]
[1763222287311,0.06,141.92,141.89,0.05019558]
[1763222288016,0.06,141.91,141.89,0.05019558]
[1763222289911,0.06,141.9,141.89,0.05019558]
[1763222290714,21.33701796,141.9,141.89,0.05019558]
[1763222292817,0.06,141.9,141.89,0.05019558]
[1763222300024,6.60883428,141.92,141.89,3.32019558]
[1763222300324,6.57883428,141.92,141.89,3.32019558]
[1763222300521,6.66032242,141.93,141.89,3.32019558]
[1763222302027,0.03,141.92,141.89,3.32019558]
[1763222302223,0.03,141.92,141.89,0.05019558]
[1763222302224,0.03,141.91,141.89,0.05019558]
[1763222302423,0.03,141.91,141.89,3.32019558]
[1763222304029,0.03,141.92,141.89,3.32019558]
[1763222304227,27.54798084,141.93,141.89,3.32019558]
[1763222305126,6.60883428,141.92,141.89,3.32019558]
[1763222305529,0.03,141.91,141.89,0.05019558]
[1763222305729,6.57883428,141.91,141.89,3.32019558]
[1763222306029,6.60883428,141.91,141.89,3.32019558]
[1763222308430,0.03,141.9,141.89,0.05019558]
[1763222308928,6.60883428,141.9,141.89,0.05019558]
[1763222309530,0.03,141.89,141.86,3.27]
[1763222310522,0.05186706,141.89,141.86,3.31626997]
[1763222315131,6.63070134,141.89,141.86,3.31626997]
[1763222315332,0.05186706,141.89,141.86,3.31626997]
[1763222316235,6.63070134,141.89,141.86,3.31626997]
[1763222316435,0.05186706,141.89,141.86,3.31626997]
[1763222317135,6.63070134,141.89,141.86,3.31626997]
[1763222317335,0.05186706,141.89,141.86,3.31626997]
[1763222319139,6.63070134,141.89,141.86,3.31626997]
[1763222319339,0.05186706,141.89,141.86,3.31626997]
[1763222320140,6.63070134,141.89,141.86,3.31626997]
[1763222321443,0.05186706,141.89,141.86,3.31626997]
[1763222324943,6.69070134,141.89,141.86,3.31626997]
[1763222325138,6.57883428,141.87,141.86,0.04626997]
[1763222325444,0.06,141.86,141.83,3.36]
[1763222325635,0.06,141.86,141.78,3.36]
[1763222325838,0.06,141.85,141.78,3.36]
[1763222326043,6.63883428,141.84,141.78,3.36]
[1763222326244,0.04766599,141.82,141.81,3.36]
[1763222326744,0.10766599,141.82,141.8,3.41312389]
[1763222326942,1.89993821,141.82,141.8,0.05312389]
[1763222327944,0.06,141.81,141.8,0.05312389]
[1763222328544,1.83993821,141.82,141.8,3.41312389]
[1763222329348,1.89993821,141.82,141.8,3.41312389]
[1763222329550,0.06,141.81,141.77,3.36]
[1763222329850,0.06,141.77,141.71,3.36]
[1763222330046,1.79227222,141.78,141.71,3.36]
[1763222330544,0.04865002,141.76,141.74,3.36]
[1763222331148,0.10865002,141.76,141.74,3.36]
[1763222331450,1.90092224,141.76,141.74,3.36]
[1763222332446,0.06,141.75,141.73,0.04515303]
[1763222333053,1.79227222,141.74,141.73,3.40515303]
[1763222334455,1.79227222,141.75,141.73,3.40515303]
[1763222337156,0.06,141.74,141.69,3.36]
[1763222337455,1.79227222,141.7,141.56,106.84842317]
[1763222337660,1.79227222,141.7,141.62,1.79227222]
[1763222337960,1.79227222,141.68,141.61,1.79227222]
[1763222338159,0.05246187,141.66,141.63,0.05202515]
[1763222338455,0.04716231,141.66,141.63,0.05098395]
[1763222339263,3.1,141.65,141.63,0.05098395]
[1763222339456,3.1,141.64,141.59,3.36]
[1763222339653,1.79227222,141.63,141.59,3.36]
[1763222340056,1.79227222,141.65,141.59,3.36]
[1763222340355,0.04601931,141.63,141.61,0.04606727]
[1763222340555,0.04601931,141.63,141.62,3.36]
[1763222342061,0.04601931,141.63,141.62,4.78]
[1763222344363,15.63227222,141.69,141.63,3.22]
[1763222345567,0.05200608,141.67,141.66,3.22]
[1763222349669,0.05200608,141.67,141.66,4.64]
[1763222350260,1.79227222,141.73,141.67,3.22]
[1763222351275,0.04487775,141.71,141.7,3.25]
[1763222353177,0.00487775,141.71,141.7,3.25]
[1763222353774,0.00487775,141.71,141.7,4.67]
[1763222354268,0.00487775,141.71,141.7,3.25]
[1763222355571,1.79227222,141.75,141.71,3.25]
[1763222355776,1.79227222,141.77,141.71,3.25]
[1763222355978,1.79227222,141.77,141.72,3.25]
[1763222356675,0.04575331,141.76,141.74,3.25]
[1763222369987,3.28575331,141.76,141.74,3.25]
[1763222370187,1.79227222,141.75,141.74,3.25]
[1763222370382,0.04575331,141.76,141.74,3.25]
[1763222371593,1.79227222,141.75,141.74,3.25]
[1763222380190,5.07227222,141.75,141.73,0.05279015]
[1763222380395,3.28,141.74,141.73,0.05279015]
[1763222380891,3.28,141.74,141.68,3.13]
[1763222381096,5.07227222,141.72,141.68,3.13]
[1763222381596,1.79227222,141.72,141.68,3.13]
[1763222381998,0.05399886,141.71,141.7,3.13]
[1763222382199,0.04590235,141.72,141.7,3.13]
[1763222391302,3.28,141.76,141.7,3.13]
[1763222392197,0.05063002,141.74,141.7,3.13]
[1763222401213,9.85909389,141.76,141.7,3.13]
[1763222401513,3.28,141.75,141.7,3.13]
[1763222401706,3.28,141.73,141.7,3.13]
[1763222402409,3.28,141.73,141.69,0.04874597]
[1763222402710,3.32467672,141.72,141.69,3.17874597]
[1763222403812,3.28,141.71,141.69,0.04874597]
[1763222404905,0.04467672,141.72,141.69,0.04874597]
[1763222405612,3.43467672,141.72,141.69,0.04874597]
[1763222406107,3.39,141.7,141.69,0.04874597]
[1763222406814,3.39,141.7,141.65,3.36]
[1763222407313,3.39,141.7,141.6,3.36]
[1763222407515,3.39,141.68,141.6,3.36]
[1763222407914,0.05376325,141.65,141.64,3.36]
[1763222410810,3.39,141.7,141.64,3.36]
[1763222411818,3.43464766,141.68,141.64,3.36]
[1763222412019,3.43464766,141.68,141.65,3.40756883]
[1763222413219,3.43464766,141.68,141.65,0.04756883]
[1763222413614,3.39,141.66,141.65,0.04756883]
[1763222421321,3.43464766,141.68,141.65,3.31756883]
[1763222431129,3.39,141.65,141.59,3.27]
[1763222432126,3.39,141.62,141.61,0.04622954]
[1763222433231,0.05269936,141.63,141.61,3.31622954]
[1763222435430,3.18269936,141.63,141.61,0.04622954]
[1763222436941,0.05269936,141.63,141.61,3.37622954]
[1763222437237,3.13,141.69,141.61,3.37622954]
[1763222438341,3.18085516,141.66,141.61,3.37622954]
[1763222438540,0.05085516,141.66,141.63,3.33]
[1763222439442,3.18085516,141.66,141.63,3.33]
[1763222439739,0.05085516,141.66,141.63,3.33]
[1763222440142,3.18085516,141.66,141.63,3.33]
[1763222440840,0.05085516,141.66,141.63,3.33]
[1763222441641,0.05085516,141.66,141.65,3.33]
[1763222448252,3.13,141.69,141.65,3.33]
[1763222449148,3.17570222,141.68,141.66,0.05349184]
[1763222451453,3.13,141.67,141.66,0.05349184]
[1763222456157,3.13,141.66,141.58,3.33]
[1763222456357,4.92518922,141.62,141.58,3.33]
[1763222456554,3.13,141.61,141.58,3.33]
[1763222457156,3.18201705,141.61,141.58,3.3795396]
[1763222458255,1.79518922,141.62,141.58,3.3795396]
[1763222459256,0.0515321,141.61,141.58,3.3795396]
[1763222460658,1.79518922,141.66,141.59,3.33]
[1763222460851,2.22518922,141.66,141.59,3.33]
[1763222461457,1.79518922,141.66,141.59,3.33]
[1763222461762,0.03861147,141.64,141.62,3.33]
[1763222463363,0.03861147,141.64,141.63,5.12518922]
[1763222466760,0.03861147,141.64,141.63,3.33]
[1763222466964,0.03861147,141.64,141.63,5.12518922]
[1763222468161,0.41,141.67,141.63,5.12518922]
[1763222469865,0.41,141.67,141.64,3.2]
[1763222470066,0.41,141.67,141.64,3.24560466]
[1763222471767,0.41,141.67,141.65,3.2]
[1763222472066,6.57670903,141.68,141.65,3.2]
[1763222472265,6.57670903,141.69,141.66,1.79518922]
[1763222472456,6.57670903,141.69,141.66,0.04942172]
[1763222472457,0.43,141.68,141.66,0.04942172]
[1763222475569,7.00670903,141.7,141.67,3.22]
[1763222477867,6.57670903,141.71,141.69,1.79518922]
[1763222478070,6.57670903,141.72,141.7,3.22]
[1763222478263,6.57670903,141.73,141.71,1.79518922]
[1763222478569,7.00670903,141.74,141.72,3.22]
[1763222479267,80.35670903,141.75,141.73,1.79518922]
[1763222479460,73.78,141.75,141.74,3.22]
[1763222479667,6.57670903,141.77,141.74,3.22]
[1763222480669,7.00670903,141.78,141.74,3.22]
[1763222480870,6.57670903,141.76,141.74,3.22]
[1763222481170,6.57670903,141.77,141.74,3.22]
[1763222482265,6.57670903,141.76,141.74,3.22]
[1763222482568,6.57670903,141.77,141.74,3.22]
[1763222482768,6.57670903,141.78,141.74,3.22]
[1763222482968,6.57670903,141.78,141.76,3.22]
[1763222483169,7.00670903,141.78,141.75,5.01518922]
[1763222483365,7.00670903,141.79,141.76,3.22]
[1763222483567,7.00670903,141.79,141.76,3.27329202]
[1763222485276,0.43,141.79,141.76,3.27329202]
[1763222486177,6.57670903,141.8,141.77,1.79518922]
[1763222486470,7.00670903,141.83,141.8,3.22]
[1763222486672,7.00670903,141.83,141.8,3.26688203]
[1763222487069,8.23417896,141.85,141.8,3.26688203]
[1763222487271,0.43,141.84,141.8,3.26688203]
[1763222489274,0.43,141.81,141.8,0.04688203]
[1763222489478,0.43,141.81,141.74,1.79518922]
[1763222489479,0.43,141.8,141.74,3.22]
[1763222489674,0.43,141.78,141.74,3.22]
[1763222490276,80.41670903,141.81,141.71,3.22]
[1763222490478,0.43,141.76,141.75,0.05328272]
[1763222491179,1.84207126,141.77,141.75,3.27328272]
[1763222491677,2.27207126,141.77,141.75,3.27328272]
[1763222491883,2.27207126,141.77,141.75,0.05328272]
[1763222492282,0.04688204,141.77,141.75,3.27328272]
[1763222492680,0.04688204,141.77,141.76,3.22]
[1763222493081,0.04688204,141.77,141.75,3.27328272]
[1763222493285,0.47688204,141.77,141.75,0.05328272]
[1763222493783,0.04688204,141.77,141.75,3.27328272]
[1763222500385,1.79518922,141.76,141.61,8.80086259]
[1763222500687,1.79518922,141.76,141.59,13.2012938]
[1763222500688,0.37,141.65,141.59,3.16]
[1763222500987,0.37,141.63,141.59,3.16]
[1763222501180,17.5442503,141.78,141.6,3.16]
[1763222501181,1.79518922,141.66,141.6,3.16]
[1763222501582,0.04645753,141.64,141.62,3.20918694]
[1763222501876,0.04925983,141.64,141.62,3.20918694]
[1763222502588,0.04925983,141.64,141.62,0.04918694]
[1763222502589,0.41925983,141.64,141.62,0.04918694]
[1763222502984,1.79518922,141.63,141.62,0.04918694]
[1763222503186,0.37,141.62,141.56,3.16]
[1763222503387,1.79518922,141.6,141.56,3.16]
[1763222504082,6.51808193,141.67,141.58,3.16]
[1763222504288,0.37,141.66,141.58,3.16]
[1763222504490,0.04871994,141.63,141.61,0.05080118]
[1763222504786,0.04871994,141.63,141.61,3.21080118]
[1763222505994,0.04871994,141.63,141.61,0.05080118]
[1763222507690,0.04871994,141.63,141.58,3.16]
[1763222507691,0.41871994,141.63,141.47,4.36715571]
[1763222507995,0.37,141.63,141.51,4.36715571]
[1763222508796,0.05390948,141.58,141.56,0.05264247]
[1763222508993,0.04613455,141.58,141.56,0.05264247]
[1763222509698,0.04613455,141.58,141.57,3.16]
[1763222509999,3.18,141.66,141.57,3.16]
[1763222510898,0.04658154,141.63,141.6,3.20788499]
[1763222522700,11.8224113,141.7,141.6,4.62788499]
[1763222522903,5.30432937,141.71,141.61,3.16]
[1763222523606,8.48432937,141.73,141.64,3.16]
[1763222523801,0.0496133,141.7,141.68,3.16]
[1763222524104,0.05364212,141.7,141.68,3.21290054]
[1763222525309,5.30432937,141.76,141.68,4.63290054]
[1763222525504,47.95808193,141.78,141.68,4.63290054]
[1763222525505,5.30432937,141.77,141.69,3.31]
[1763222525706,8.40432937,141.77,141.69,3.31]
[1763222526306,0.04713047,141.74,141.72,3.35472651]
[1763222529311,3.14713047,141.74,141.72,0.04472651]
[1763222529512,3.14713047,141.74,141.63,6.95120179]
[1763222529813,3.14713047,141.74,141.56,9.74]
[1763222529814,3.1,141.74,141.64,3.31]
[1763222530613,0.04479022,141.7,141.68,3.36060794]
[1763222532713,3.22479022,141.7,141.68,0.05060794]
[1763222533013,0.04479022,141.7,141.68,3.18060794]
[1763222536819,3.31479022,141.7,141.68,0.05060794]
[1763222537216,0.04479022,141.7,141.68,0.05060794]
[1763222538120,0.04479022,141.7,141.68,3.16060794]
[1763222542326,5.3560263,141.7,141.68,3.16060794]
[1763222542522,0.04479022,141.7,141.68,3.16060794]
[1763222542725,5.3560263,141.7,141.68,3.16060794]
[1763222543020,3.27,141.69,141.68,0.05060794]
[1763222543221,3.27,141.68,141.64,3.11]
[1763222543417,8.58123608,141.67,141.64,3.11]
[1763222543617,3.27,141.67,141.64,3.11]
[1763222543822,5.31123608,141.66,141.64,3.11]
[1763222544131,5.36526472,141.66,141.64,3.1550006]
[1763222544325,3.27,141.65,141.64,0.0450006]
[1763222544530,8.58123608,141.65,141.61,3.11]
[1763222544725,5.31123608,141.64,141.61,3.11]
[1763222544929,5.31123608,141.64,141.52,27.95120179]
[1763222544930,3.27,141.63,141.53,3.11]
[1763222545631,0.05123585,141.59,141.58,3.11]
[1763222545826,0.05372813,141.6,141.58,3.11]
[1763222546022,0.04450072,141.6,141.58,3.15515912]
[1763222546228,5.31123608,141.65,141.59,3.11]
[1763222546428,5.31123608,141.67,141.59,3.11]
[1763222546825,11.82982539,141.68,141.59,3.11]
[1763222547032,5.31123608,141.67,141.59,3.11]
[1763222547228,5.31123608,141.68,141.59,3.11]
[1763222547432,5.31123608,141.68,141.63,3.11]
[1763222547433,0.04967502,141.64,141.63,3.11]
[1763222547634,0.04875664,141.65,141.63,3.11]
[1763222549233,5.31123608,141.68,141.63,4.53]
[1763222549433,5.16935954,141.71,141.64,3.11]
[1763222549634,5.16935954,141.72,141.64,3.11]
[1763222550435,0.05309378,141.69,141.68,3.11]
[1763222557639,0.05309378,141.69,141.67,3.2397098]
[1763222559240,3.39309378,141.69,141.67,0.0497098]
[1763222560842,5.22245332,141.69,141.67,3.2397098]
[1763222561043,0.05309378,141.69,141.67,3.2397098]
[1763222561443,5.16935954,141.68,141.67,0.0497098]
[1763222563648,8.50935954,141.68,141.67,0.0497098]
[1763222563946,3.34,141.67,141.61,3.19]
[1763222564143,5.16935954,141.66,141.61,3.19]
[1763222564747,5.19065483,141.68,141.63,3.19]
[1763222564944,3.34,141.73,141.63,3.19]
[1763222565246,3.34,141.73,141.64,3.19]
[1763222565750,0.04441648,141.7,141.67,3.23967919]
[1763222567447,31.52105,141.77,141.68,3.19]
[1763222568245,6.57647877,141.76,141.68,3.19]
[1763222568450,0.04982323,141.73,141.72,3.19]
[1763222568650,0.04982323,141.73,141.71,0.04891525]
[1763222568850,0.04982323,141.73,141.71,3.23891525]
[1763222574058,3.38982323,141.73,141.71,0.04891525]
[1763222574860,0.04982323,141.73,141.71,3.23891525]
[1763222576761,3.38982323,141.73,141.71,0.04891525]
[1763222581263,0.04982323,141.73,141.71,3.23891525]
[1763222584570,37.85752877,141.77,141.73,3.09]
[1763222584968,31.28105,141.77,141.73,3.09]
[1763222587372,3.1,141.76,141.73,3.09]
[1763222594073,28.18105,141.77,141.73,3.09]
[1763222594274,31.36105,141.77,141.73,3.09]
[1763222594871,4.97361905,141.76,141.73,3.09]
[1763222595783,34.75752877,141.77,141.73,3.09]
[1763222596077,31.36105,141.77,141.73,3.09]
[1763222597274,3.18,141.73,141.71,0.04891525]
[1763222597474,3.18,141.71,141.65,3.18]
[1763222597670,3.18,141.67,141.63,3.18]
[1763222597977,4.97361905,141.66,141.63,3.18]
[1763222598178,4.97361905,141.66,141.57,3.18]
[1763222598179,1.79361905,141.64,141.57,3.18]
[1763222598378,1.79361905,141.62,141.57,3.18]
[1763222598580,1.84541459,141.62,141.59,0.04621926]
[1763222598880,0.05179554,141.62,141.59,3.22621926]
[1763222600281,0.05179554,141.62,141.59,5.01983831]
[1763222600476,0.05179554,141.62,141.6,3.18]
[1763222601480,0.05179554,141.62,141.59,3.22621926]
[1763222601679,3.23179554,141.62,141.59,3.22621926]
[1763222601978,4.97361905,141.61,141.59,0.04621926]
[1763222602181,3.18,141.6,141.59,0.04621926]
[1763222603276,1.79361905,141.61,141.59,3.22621926]
[1763222603471,0.05179554,141.62,141.59,3.22621926]
[1763222603670,3.23179554,141.62,141.59,0.04621926]
[1763222604476,1.79361905,141.61,141.59,0.04621926]
[1763222604677,1.79361905,141.61,141.59,3.22621926]
[1763222604983,0.05179554,141.62,141.59,3.22621926]
[1763222605183,3.23179554,141.62,141.59,3.22621926]
[1763222605585,0.05179554,141.62,141.59,3.22621926]
[1763222606284,0.05179554,141.62,141.6,3.18]
[1763222615793,3.42179554,141.62,141.59,3.42621926]
[1763222616298,0.05179554,141.62,141.61,5.17361905]
[1763222616492,0.05179554,141.62,141.6,3.38]
[1763222617396,0.05179554,141.62,141.61,5.17361905]
[1763222617891,1.79361905,141.7,141.62,3.38]
[1763222618096,5.16361905,141.72,141.66,3.38]
[1763222618996,3.37,141.71,141.68,0.05129058]
[1763222619686,5.16361905,141.7,141.68,0.05129058]
[1763222620492,3.37,141.69,141.68,0.05129058]
[1763222620797,1.79361905,141.7,141.68,0.05129058]
[1763222621600,5.16361905,141.7,141.68,0.05129058]
[1763222622100,3.37,141.69,141.68,0.05129058]
[1763222624295,1.79361905,141.71,141.68,3.43129058]
[1763222624799,5.16361905,141.71,141.68,3.43129058]
[1763222626399,3.37,141.7,141.68,0.05129058]
[1763222628298,10.24804999,141.74,141.68,3.43129058]
[1763222628602,3.37,141.71,141.7,0.05117232]
[1763222628801,3.37,141.69,141.64,3.38]
[1763222628995,5.16361905,141.69,141.64,3.38]
[1763222629803,0.04651668,141.68,141.65,3.43143887]
[1763222632303,3.41651668,141.68,141.65,0.05143887]
[1763222632904,3.41651668,141.68,141.65,3.43143887]
[1763222633504,0.04651668,141.68,141.65,3.43143887]
[1763222641112,3.41651668,141.68,141.65,0.05143887]
[1763222641512,3.41651668,141.68,141.65,3.43143887]
[1763222641810,0.04651668,141.68,141.65,3.43143887]
[1763222642007,9.89530321,141.73,141.67,3.38]
[1763222642312,9.89530321,141.74,141.67,3.38]
[1763222642511,3.37,141.74,141.67,3.38]
[1763222643010,3.37,141.74,141.7,3.38]
[1763222643206,38.07635321,141.77,141.71,3.38]
[1763222643411,31.55105,141.77,141.74,3.38]
[1763222643611,31.55105,141.77,141.73,0.05073877]
[1763222643612,3.37,141.76,141.73,3.43073877]
[1763222643904,3.37,141.76,141.73,0.05073877]
[1763222645318,28.18105,141.77,141.73,3.27073877]
[1763222645615,31.33105,141.77,141.73,3.27073877]
[1763222647010,3.15,141.76,141.73,3.27073877]
[1763222647415,3.15,141.76,141.73,0.05073877]
[1763222647714,3.15,141.76,141.73,3.27073877]
[1763222649920,28.18105,141.77,141.73,3.27073877]
[1763222652517,31.27105,141.77,141.73,3.27073877]
[1763222653021,28.18105,141.77,141.73,3.27073877]
[1763222653220,28.18105,141.77,141.75,3.38]
[1763222656226,31.27105,141.77,141.73,3.43073877]
[1763222658323,28.18105,141.77,141.73,3.43073877]
[1763222658519,28.18105,141.77,141.75,3.38]
[1763222661318,31.27105,141.77,141.73,3.43073877]
[1763222662823,28.18105,141.77,141.73,3.43073877]
[1763222664022,28.18105,141.77,141.75,3.38]
[1763222670226,14.90945647,141.77,141.76,6.18466929]
[1763222670537,6.08858614,141.77,141.76,6.18466929]
[1763222675936,6.08858614,141.77,141.76,3.38]
[1763222676137,6.08858614,141.77,141.75,3.09]
[1763222676931,9.32858614,141.77,141.73,0.05073877]
[1763222677132,9.32858614,141.77,141.73,3.14073877]
[1763222678035,3.24,141.76,141.73,0.05073877]
[1763222679042,3.24,141.75,141.73,0.05073877]
[1763222679438,3.24,141.74,141.73,0.05073877]
[1763222679635,6.04466929,141.74,141.66,5.89466929]
[1763222679836,3.24,141.73,141.66,5.89466929]
[1763222680032,3.24,141.73,141.66,3.09]
[1763222680233,3.24,141.73,141.64,2.80466929]
[1763222680434,2.80466929,141.72,141.64,2.80466929]
[1763222680636,0.05144259,141.69,141.67,0.05200018]
[1763222680843,3.24,141.68,141.67,0.05200018]
[1763222686146,0.05144259,141.69,141.67,3.14200018]
[1763222686847,3.24,141.72,141.67,3.14200018]
[1763222687049,3.24,141.72,141.69,3.09]
[1763222688338,3.24,141.76,141.69,3.09]
[1763222688545,3.24,141.76,141.71,0.04573545]
[1763222689451,6.04466929,141.76,141.71,0.04573545]
[1763222689651,3.24,141.75,141.71,0.04573545]
[1763222695059,3.24,141.74,141.71,0.04573545]
[1763222699857,3.24,141.72,141.66,1.79375153]
[1763222700060,3.24,141.72,141.64,3.09]
[1763222700061,3.24,141.7,141.64,4.88375153]
[1763222700454,3.24,141.7,141.64,1.79375153]
[1763222700762,3.24,141.68,141.59,3.09]
[1763222701061,3.24,141.68,141.65,3.09]
[1763222701266,3.2855806,141.68,141.65,3.13675629]
[1763222701653,0.0455806,141.68,141.67,3.09]
[1763222701854,0.0455806,141.68,141.67,4.88375153]
[1763222704563,0.0455806,141.68,141.67,1.79375153]
[1763222705269,3.3655806,141.68,141.67,1.79375153]
[1763222705570,3.3655806,141.68,141.65,1.84050782]
[1763222705868,3.3655806,141.68,141.65,4.92050782]
[1763222706175,3.3655806,141.68,141.65,0.04675629]
[1763222707569,0.0455806,141.68,141.66,4.87375153]
[1763222707773,0.0455806,141.68,141.67,3.08]
[1763222709064,0.0455806,141.68,141.66,4.87375153]
[1763222710174,0.0455806,141.68,141.67,3.08]
[1763222710375,3.32,141.75,141.67,3.08]
[1763222710573,3.32,141.75,141.7,1.79375153]
[1763222711373,3.35,141.74,141.71,0.05051222]
[1763222715970,3.35,141.72,141.71,0.05051222]
[1763222716474,4.77,141.72,141.71,0.05051222]
[1763222718876,3.35,141.71,141.62,5.02375153]
[1763222719085,3.35,141.69,141.63,3.23]
[1763222719882,3.39711743,141.67,141.65,0.05110591]
[1763222721284,0.04711743,141.67,141.65,3.28110591]
[1763222721878,3.39711743,141.67,141.65,0.05110591]
[1763222723685,0.04711743,141.67,141.65,3.28110591]
[1763222723873,3.35,141.71,141.65,3.28110591]
[1763222726582,6.55834484,141.73,141.65,3.28110591]
[1763222726788,3.35,141.73,141.67,3.23]
[1763222727087,3.35,141.73,141.69,0.04439245]
[1763222730490,3.35,141.73,141.69,3.27439245]
[1763222731590,3.35,141.73,141.69,0.04439245]